bitfinex-derivatives/quotes_BTCF0:USTF0_20240905
["timestamp","ask_amount","ask_price","bid_price","bid_amount"]
[1725553409142,1.13512,56271.0,56270.0,0.089861]
[1725553409343,0.07276598,56271.0,56270.0,0.089861]
[1725553409648,1.13512,56271.0,56270.0,0.089861]
[1725553409833,0.602,56271.0,56270.0,0.089861]
[1725553410034,0.002,56271.0,56270.0,0.089861]
[1725553410246,0.002,56271.0,56270.0,0.178722]
[1725553411138,0.002,56271.0,56270.0,0.267583]
[1725553411841,0.05515013,56271.0,56270.0,0.267583]
[1725553412039,0.002,56271.0,56270.0,0.089361]
[1725553412442,0.07276598,56271.0,56270.0,0.089361]
[1725553412840,0.53512,56271.0,56270.0,0.089361]
[1725553413146,0.60600939,56271.0,56270.0,0.089361]
[1725553413348,0.53512,56271.0,56270.0,0.089361]
[1725553413650,0.002,56271.0,56270.0,0.089361]
[1725553414854,0.07290336,56271.0,56270.0,0.089361]
[1725553415037,0.002,56271.0,56270.0,0.089361]
[1725553415539,0.07290846,56271.0,56270.0,0.089361]
[1725553415739,0.002,56271.0,56270.0,0.089361]
[1725553416938,0.002,56271.0,56270.0,0.178222]
[1725553417542,0.072906,56271.0,56270.0,0.178222]
[1725553418254,0.072906,56271.0,56270.0,0.089361]
[1725553418546,0.002,56271.0,56270.0,0.089361]
[1725553418736,0.07292194,56271.0,56270.0,0.089361]
[1725553418950,0.002,56271.0,56270.0,0.089361]
[1725553420151,0.002,56271.0,56270.0,0.309361]
[1725553422242,0.08978971,56271.0,56270.0,0.398222]
[1725553422444,0.002,56271.0,56270.0,0.398222]
[1725553422651,0.002,56271.0,56270.0,0.487083]
[1725553423838,0.62398,56271.0,56270.0,0.089361]
[1725553424044,1.25279749,56271.0,56270.0,0.001]
[1725553424444,1.28713367,56271.0,56270.0,0.001]
[1725553424952,1.3524056,56271.0,56270.0,0.001]
[1725553425253,0.088867,56267.0,56260.0,0.00026668]
[1725553425452,0.41534473,56261.0,56260.0,0.00026668]
[1725553425751,0.03972583,56261.0,56260.0,0.08914368]
[1725553425954,0.63972583,56261.0,56260.0,0.08914368]
[1725553426450,0.83507056,56261.0,56260.0,0.08914368]
[1725553426647,1.25293249,56261.0,56260.0,0.00026668]
[1725553426949,1.25294001,56261.0,56260.0,0.00026668]
[1725553427255,1.27928823,56261.0,56260.0,0.00026668]
[1725553427456,1.17284529,56261.0,56260.0,0.00026668]
[1725553427757,1.27928823,56261.0,56260.0,0.00026668]
[1725553427948,0.56406501,56261.0,56260.0,0.00026668]
[1725553428545,0.56506501,56261.0,56260.0,0.00026668]
[1725553428746,1.16506501,56261.0,56260.0,0.00026668]
[1725553428948,1.25394001,56261.0,56260.0,0.00026668]
[1725553429249,0.65394001,56261.0,56260.0,0.00026668]
[1725553429449,0.03182501,56261.0,56260.0,0.00026668]
[1725553429651,0.00978915,56261.0,56260.0,0.08914368]
[1725553429848,0.03861247,56261.0,56260.0,0.08914368]
[1725553430641,0.09844788,56261.0,56260.0,0.08914368]
[1725553430863,0.00978915,56261.0,56260.0,0.08914368]
[1725553431049,0.003,56261.0,56260.0,0.08914368]
[1725553431253,0.09165873,56261.0,56260.0,0.08914368]
[1725553432657,0.0739123,56261.0,56260.0,0.53689768]
[1725553432855,0.0739123,56261.0,56260.0,0.49622068]
[1725553433155,0.003,56261.0,56260.0,0.49622068]
[1725553434042,0.003,56261.0,56260.0,0.58509768]
[1725553434762,0.05318243,56266.0,56264.0,0.088871]
[1725553434961,4.3e-07,56266.0,56265.0,0.897407]
[1725553435148,4.3e-07,56268.0,56266.0,0.177736]
[1725553435462,0.0709123,56272.0,56271.0,0.08886]
[1725553435957,0.08865873,56275.0,56273.0,0.088857]
[1725553436145,0.10439066,56274.0,56273.0,0.088857]
[1725553436761,1.23751066,56274.0,56273.0,0.088857]
[1725553437060,1.17766887,56274.0,56267.0,1.5]
[1725553437250,0.44943846,56270.0,56269.0,0.088861]
[1725553438655,0.44943846,56270.0,56269.0,0.089861]
[1725553439451,0.3608,56270.0,56269.0,0.089861]
[1725553440352,1.61164007,56270.0,56269.0,0.001]
[1725553440548,1.65824007,56270.0,56269.0,0.001]
[1725553440755,1.6650523,56270.0,56269.0,0.001]
[1725553441652,1.77149524,56270.0,56269.0,0.001]
[1725553442761,1.6650523,56270.0,56269.0,0.001]
[1725553443154,1.77149524,56270.0,56269.0,0.001]
[1725553443468,1.6650523,56270.0,56269.0,0.001]
[1725553444756,0.088875,56262.0,56261.0,0.088875]
[1725553444964,0.39162218,56262.0,56261.0,0.088875]
[1725553445559,0.4514702,56262.0,56261.0,0.088875]
[1725553445761,0.0906702,56262.0,56261.0,0.088875]
[1725553445967,0.002,56262.0,56261.0,0.088875]
[1725553446766,0.0906702,56262.0,56261.0,0.088875]
[1725553447067,0.002,56262.0,56261.0,0.088875]
[1725553447768,0.003,56262.0,56261.0,0.088875]
[1725553447959,0.003,56262.0,56261.0,0.39775]
[1725553448156,0.003,56262.0,56261.0,0.75855]
[1725553448575,0.003,56262.0,56261.0,0.80725]
[1725553448864,0.003,56262.0,56261.0,1.94645]
[1725553449262,0.003,56262.0,56261.0,1.95337497]
[1725553449568,0.003,56262.0,56261.0,2.31417497]
[1725553449760,0.0041,56273.0,56262.0,0.22]
[1725553450069,0.0041,56273.0,56261.0,3.09766497]
[1725553450070,0.10440213,56274.0,56273.0,0.088857]
[1725553450260,0.04454864,56274.0,56273.0,0.088857]
[1725553450956,0.40534864,56274.0,56273.0,0.088857]
[1725553451362,0.46520287,56274.0,56273.0,0.308857]
[1725553451561,0.01673193,56274.0,56273.0,0.398714]
[1725553452758,0.01673193,56274.0,56273.0,0.309857]
[1725553454756,0.01673193,56274.0,56273.0,0.398714]
[1725553454962,0.01673193,56274.0,56273.0,0.309857]
[1725553455162,0.01673193,56274.0,56273.0,0.089857]
[1725553455663,0.10540287,56274.0,56273.0,0.089857]
[1725553456072,0.04554947,56274.0,56273.0,0.089857]
[1725553456466,1.39866947,56274.0,56273.0,0.089857]
[1725553456658,1.48752447,56274.0,56273.0,0.001]
[1725553457081,1.49437746,56274.0,56273.0,0.001]
[1725553457776,1.49437746,56274.0,56273.0,0.089857]
[1725553458276,1.49437746,56274.0,56262.0,0.0041]
[1725553458277,1.43985797,56274.0,56266.0,0.088867]
[1725553458572,0.0906598,56267.0,56261.0,0.22]
[1725553458772,0.0462,56266.0,56261.0,0.22]
[1725553458967,0.002,56262.0,56261.0,0.088875]
[1725553459172,0.002,56262.0,56261.0,0.17775]
[1725553459368,0.002,56262.0,56261.0,0.308875]
[1725553459562,0.002,56262.0,56261.0,0.088875]
[1725553459962,0.0906598,56262.0,56261.0,0.088875]
[1725553460162,0.002,56262.0,56261.0,0.088875]
[1725553460375,0.03082329,56262.0,56261.0,0.088875]
[1725553460675,1.25293829,56262.0,56260.0,0.00026668]
[1725553460868,0.12582329,56261.0,56260.0,0.00026668]
[1725553461071,0.34582329,56261.0,56260.0,0.08914368]
[1725553461377,0.87906329,56261.0,56260.0,0.08914368]
[1725553461670,0.96793829,56261.0,56260.0,0.00026668]
[1725553461866,1.56793829,56261.0,56260.0,0.00026668]
[1725553462963,0.43469829,56261.0,56260.0,0.00026668]
[1725553463375,0.65906329,56261.0,56260.0,0.00026668]
[1725553463576,0.03082329,56261.0,56260.0,0.08914368]
[1725553463781,0.003,56261.0,56260.0,0.08914368]
[1725553464480,0.09165836,56261.0,56260.0,0.08914368]
[1725553464669,0.40053336,56261.0,56260.0,0.00026668]
[1725553464869,0.34069879,56261.0,56260.0,0.00026668]
[1725553465171,1.47393879,56261.0,56260.0,0.00026668]
[1725553466578,0.87393879,56261.0,56260.0,0.00026668]
[1725553468473,0.088891,56251.0,56250.0,0.0041]
[1725553468673,0.54033047,56251.0,56242.0,0.3608]
[1725553468875,0.002,56243.0,56242.0,0.3608]
[1725553469175,0.22,56248.0,56245.0,0.0889]
[1725553469566,0.22,56248.0,56241.0,0.22]
[1725553469567,0.22,56248.0,56246.0,0.088899]
[1725553469767,0.22,56248.0,56243.0,0.088904]
[1725553469975,0.671703,56244.0,56241.0,0.08917368]
[1725553470175,0.671703,56244.0,56241.0,0.00026668]
[1725553470176,0.002,56242.0,56241.0,0.00026668]
[1725553470383,0.088905,56242.0,56241.0,0.00026668]
[1725553470570,0.088905,56242.0,56231.0,0.0041]
[1725553470571,0.088912,56238.0,56231.0,0.0041]
[1725553470768,0.088912,56238.0,56225.0,0.5856]
[1725553470769,0.5808,56234.0,56232.0,0.088921]
[1725553470971,0.088927,56229.0,56224.0,0.137533]
[1725553471171,0.3628,56225.0,56224.0,0.088934]
[1725553471475,0.3628,56225.0,56220.0,0.08894]
[1725553471476,0.5828,56225.0,56220.0,0.08894]
[1725553471676,0.5828,56225.0,56221.0,0.088938]
[1725553471978,0.22,56222.0,56219.0,0.00026668]
[1725553472170,0.3628,56220.0,56219.0,0.00026668]
[1725553472372,0.002,56220.0,56219.0,0.30920868]
[1725553472778,0.002,56220.0,56219.0,0.39815068]
[1725553473167,0.01095341,56231.0,56229.0,0.088926]
[1725553473373,0.00685341,56231.0,56229.0,0.308926]
[1725553474082,0.00685341,56231.0,56229.0,0.088926]
[1725553474379,0.3608,56239.0,56229.0,0.088926]
[1725553475987,0.00692496,56237.0,56229.0,0.088926]
[1725553476280,0.3608,56239.0,56229.0,0.088926]
[1725553476482,0.00126668,56230.0,56229.0,0.088926]
[1725553476875,0.00126668,56230.0,56229.0,0.177852]
[1725553478073,0.00026668,56230.0,56229.0,0.177852]
[1725553478271,0.00026668,56230.0,56229.0,0.181852]
[1725553478479,0.00026668,56230.0,56229.0,0.18889219]
[1725553479779,0.00026668,56230.0,56229.0,0.27781819]
[1725553480080,0.00026668,56230.0,56229.0,0.63861819]
[1725553480474,0.00026668,56230.0,56229.0,0.63461819]
[1725553480781,0.00026668,56230.0,56229.0,1.16913819]
[1725553481085,0.00026668,56230.0,56229.0,1.76913819]
[1725553481490,0.00026668,56230.0,56229.0,1.77013819]
[1725553482973,0.0041,56241.0,56240.0,0.088909]
[1725553483283,0.3608,56242.0,56235.0,0.088916]
[1725553483479,0.3608,56242.0,56241.0,0.088907]
[1725553483989,0.36761216,56242.0,56241.0,0.088907]
[1725553484391,0.36861216,56242.0,56241.0,0.088907]
[1725553486374,0.90201216,56242.0,56241.0,0.088907]
[1725553486779,0.36761216,56242.0,56241.0,0.088907]
[1725553486985,0.36861216,56242.0,56241.0,0.089907]
[1725553487975,0.001,56242.0,56241.0,0.537721]
[1725553488590,0.00026343,56247.0,56246.0,0.177798]
[1725553488887,0.00026343,56247.0,56246.0,1.947798]
[1725553489896,0.00026343,56247.0,56246.0,2.397497]
[1725553490891,0.00026343,56247.0,56246.0,3.530857]
[1725553491089,0.00026343,56247.0,56246.0,3.531857]
[1725553491090,0.00126343,56247.0,56246.0,3.531857]
[1725553491287,4.3e-07,56247.0,56246.0,3.620756]
[1725553493283,0.0041,56256.0,56255.0,0.088885]
[1725553493488,0.3608,56259.0,56252.0,0.358889]
[1725553493794,0.36788824,56260.0,56253.0,0.088888]
[1725553493996,0.3608,56260.0,56253.0,0.088888]
[1725553494189,0.3608,56260.0,56259.0,0.088879]
[1725553495390,0.36775085,56260.0,56259.0,0.088879]
[1725553496498,0.36775085,56260.0,56259.0,0.089879]
[1725553497700,0.36775085,56260.0,56259.0,0.178758]
[1725553499198,0.36775085,56260.0,56259.0,0.089879]
[1725553499393,0.00695085,56260.0,56259.0,0.089879]
[1725553499601,0.3608,56263.0,56262.0,0.088874]
[1725553500399,0.3608,56263.0,56251.0,0.44969]
[1725553500400,1.74282675,56263.0,56255.0,0.088884]
[1725553500598,1.74282675,56263.0,56250.0,0.00026668]
[1725553500599,0.5808,56256.0,56250.0,0.00026668]
[1725553500906,0.669691,56251.0,56250.0,0.00026668]
[1725553501087,0.671691,56251.0,56250.0,0.00026668]
[1725553501396,1.89143828,56251.0,56250.0,0.00026668]
[1725553501599,1.83184319,56251.0,56250.0,0.00026668]
[1725553502590,1.74295219,56251.0,56242.0,0.088904]
[1725553502798,0.222,56243.0,56242.0,0.088904]
[1725553503002,0.222,56243.0,56231.0,0.0041]
[1725553503187,0.222,56243.0,56231.0,0.088923]
[1725553503188,0.222,56232.0,56231.0,0.088923]
[1725553503592,0.222,56232.0,56223.0,0.22]
[1725553503904,0.22,56227.0,56224.0,0.088934]
[1725553504101,0.22,56225.0,56224.0,0.088934]
[1725553504296,0.0486,56226.0,56225.0,0.088932]
[1725553504502,0.04966668,56233.0,56232.0,0.088921]
[1725553504710,0.00026668,56233.0,56232.0,0.308921]
[1725553504891,0.00026668,56233.0,56232.0,0.397842]
[1725553505396,6.8e-07,56233.0,56232.0,0.397842]
[1725553505890,6.8e-07,56233.0,56232.0,1.531322]
[1725553506600,6.8e-07,56233.0,56232.0,1.62711061]
[1725553507103,6.8e-07,56233.0,56232.0,3.49997944]
[1725553507308,6.8e-07,56233.0,56232.0,3.41105844]
[1725553507601,6.8e-07,56233.0,56232.0,2.26850961]
[1725553507793,6.8e-07,56233.0,56232.0,3.40198961]
[1725553508394,6.8e-07,56233.0,56232.0,3.49091061]
[1725553508602,6.8e-07,56233.0,56232.0,3.45508474]
[1725553509105,6.8e-07,56233.0,56232.0,3.49991061]
[1725553509794,6.8e-07,56233.0,56232.0,3.48791061]
[1725553509997,6.8e-07,56240.0,56233.0,0.53348]
[1725553510195,0.00200012,56256.0,56254.0,0.088887]
[1725553510405,0.002,56256.0,56255.0,0.39777]
[1725553510600,0.002,56256.0,56255.0,0.308885]
[1725553510793,0.002,56256.0,56255.0,0.39777]
[1725553510999,1e-06,56256.0,56255.0,0.39777]
[1725553511196,1e-06,56256.0,56255.0,0.486655]
[1725553511403,1e-06,56256.0,56255.0,1.619935]
[1725553511591,1e-06,56256.0,56255.0,3.119935]
[1725553511809,1e-06,56256.0,56255.0,3.17297966]
[1725553511998,1e-06,56256.0,56255.0,1.94777]
[1725553512200,0.27,56267.0,56264.0,0.088871]
[1725553512402,0.088869,56265.0,56264.0,0.088871]
[1725553512596,0.088869,56265.0,56259.0,0.3608]
[1725553512597,0.27,56267.0,56266.0,0.088868]
[1725553512796,0.088873,56263.0,56259.0,0.088879]
[1725553513002,0.6803,56262.0,56261.0,0.088875]
[1725553513196,0.6803,56262.0,56254.0,0.001]
[1725553513197,1.950075,56262.0,56254.0,0.001]
[1725553513394,0.002,56255.0,56254.0,0.001]
[1725553513606,0.73867956,56255.0,56250.0,0.00026668]
[1725553513805,0.6328,56251.0,56237.0,0.00690706]
[1725553514008,0.6328,56251.0,56241.0,0.27]
[1725553514009,0.250214,56246.0,56241.0,0.27]
[1725553514207,0.3608,56267.0,56248.0,0.3608]
[1725553514410,0.3608,56267.0,56266.0,0.088868]
[1725553514920,0.00026668,56272.0,56263.0,0.6308]
[1725553515206,0.00026668,56272.0,56271.0,0.08886]
[1725553516296,6.8e-07,56272.0,56271.0,0.17772]
[1725553516497,7.8e-07,56281.0,56280.0,0.088845]
[1725553516701,7.8e-07,56281.0,56280.0,1.080445]
[1725553516911,7.8e-07,56281.0,56280.0,1.16929]
[1725553517212,7.8e-07,56281.0,56280.0,1.080445]
[1725553518602,7.8e-07,56281.0,56280.0,2.580445]
[1725553518807,7.8e-07,56281.0,56280.0,1.080445]
[1725553519193,0.00100078,56281.0,56280.0,1.17029]
[1725553519600,7.8e-07,56281.0,56280.0,1.17029]
[1725553519997,7.8e-07,56281.0,56280.0,0.90029]
[1725553520196,7.8e-07,56281.0,56280.0,1.17710155]
[1725553520806,7.8e-07,56281.0,56280.0,0.811445]
[1725553521111,1.13304078,56281.0,56275.0,0.00026668]
[1725553521307,0.3608,56278.0,56275.0,0.00026668]
[1725553521604,0.3608,56278.0,56275.0,0.08911968]
[1725553521605,0.002,56276.0,56275.0,0.08911968]
[1725553521814,0.002,56276.0,56275.0,0.35911968]
[1725553523408,0.002,56276.0,56275.0,0.44797268]
[1725553523600,0.002,56276.0,56275.0,0.35911968]
[1725553524605,0.002,56276.0,56275.0,0.08911968]
[1725553525704,0.002,56276.0,56275.0,0.35911968]
[1725553526608,0.002,56276.0,56275.0,0.44797268]
[1725553526808,0.002,56276.0,56275.0,1.58105268]
[1725553527311,0.002,56276.0,56275.0,1.66990568]
[1725553527506,0.01136586,56283.0,56282.0,0.088842]
[1725553527695,0.01136586,56283.0,56282.0,0.358842]
[1725553527899,0.01136586,56283.0,56282.0,0.088842]
[1725553530416,0.01236586,56283.0,56282.0,0.089842]
[1725553531507,0.01236586,56283.0,56282.0,0.178684]
[1725553531705,0.01236586,56283.0,56282.0,0.089842]
[1725553532512,0.01236586,56283.0,56282.0,0.177684]
[1725553532513,0.01136586,56283.0,56282.0,0.177684]
[1725553532815,0.01529718,56310.0,56295.0,0.05408496]
[1725553533112,0.01529718,56310.0,56307.0,0.447606]
[1725553533810,3.9e-07,56310.0,56309.0,0.1776]
[1725553534113,7.9e-07,56311.0,56310.0,0.177596]
[1725553534312,0.01474337,56322.0,56320.0,0.088782]
[1725553534313,2.2e-07,56322.0,56320.0,0.088782]
[1725553534614,2.2e-07,56322.0,56318.0,0.27]
[1725553534916,0.002,56319.0,56318.0,0.27]
[1725553537608,0.002,56319.0,56318.0,0.271]
[1725553538518,2.2e-07,56322.0,56321.0,0.088781]
[1725553538709,0.01178879,56326.0,56321.0,0.6]
[1725553538910,0.01178879,56326.0,56325.0,0.6308]
[1725553538911,7.9e-07,56326.0,56325.0,0.6308]
[1725553539715,7.9e-07,56326.0,56325.0,1.8608]
[1725553540314,7.9e-07,56326.0,56325.0,0.6308]
[1725553540519,7.9e-07,56326.0,56325.0,0.6318]
[1725553540918,7.9e-07,56326.0,56325.0,0.3618]
[1725553541122,7.9e-07,56326.0,56325.0,0.089774]
[1725553545026,7.9e-07,56326.0,56316.0,0.00026642]
[1725553545027,1.76340079,56326.0,56316.0,0.00026642]
[1725553545211,0.088797,56311.0,56308.0,0.0041]
[1725553545412,0.64171599,56311.0,56302.0,0.08881]
[1725553545630,0.272,56303.0,56302.0,0.08881]
[1725553546118,0.272,56303.0,56301.0,0.3608]
[1725553546318,0.002,56302.0,56301.0,0.449612]
[1725553548824,0.003,56302.0,56301.0,0.462612]
[1725553550619,0.003,56302.0,56301.0,0.190624]
[1725553550915,1.494651,56302.0,56301.0,0.013]
[1725553551224,0.53584,56302.0,56301.0,0.101812]
[1725553551419,1.13584,56302.0,56301.0,0.101812]
[1725553551620,1.13584,56302.0,56301.0,0.013]
[1725553552319,0.003,56302.0,56301.0,0.013]
[1725553552521,0.002,56302.0,56301.0,0.449612]
[1725553552717,0.003,56302.0,56301.0,0.450612]
[1725553554022,0.003,56302.0,56301.0,0.539424]
[1725553558023,0.003,56302.0,56301.0,0.450612]
[1725553559426,0.003,56302.0,56301.0,0.539424]
[1725553559624,0.003,56302.0,56301.0,0.450612]
[1725553560124,0.003,56302.0,56301.0,0.539424]
[1725553560433,0.003,56302.0,56301.0,0.809424]
[1725553560818,0.003,56302.0,56301.0,0.898236]
[1725553561025,0.003,56302.0,56301.0,0.809424]
[1725553561426,0.003,56302.0,56301.0,0.720612]
[1725553561619,0.003,56302.0,56301.0,0.450612]
[1725553562720,0.003,56302.0,56301.0,0.539424]
[1725553565132,0.003,56302.0,56301.0,0.450612]
[1725553565632,0.091811,56302.0,56301.0,0.3618]
[1725553565823,0.53584,56302.0,56301.0,0.001]
[1725553566022,0.53584,56302.0,56301.0,0.089812]
[1725553566223,0.003,56302.0,56301.0,0.089812]
[1725553567449,0.05581246,56302.0,56301.0,0.001]
[1725553567647,0.05581246,56302.0,56288.0,0.0041]
[1725553567648,1.2438,56302.0,56288.0,0.0041]
[1725553567936,1.2438,56302.0,56281.0,0.0041]
[1725553567937,0.088837,56286.0,56281.0,0.0041]
[1725553568136,0.002,56282.0,56279.0,0.3608]
[1725553568328,0.002,56280.0,56279.0,0.3608]
[1725553568726,0.002,56280.0,56279.0,0.449647]
[1725553569737,0.005,56280.0,56279.0,0.449647]
[1725553571429,0.005,56280.0,56279.0,0.3608]
[1725553571638,0.005,56280.0,56274.0,0.36106642]
[1725553571639,0.59106784,56280.0,56274.0,0.00026642]
[1725553571935,0.002,56275.0,56274.0,0.08912142]
[1725553572836,0.002,56275.0,56274.0,0.09112142]
[1725553574147,0.002,56282.0,56281.0,0.088844]
[1725553574329,0.002,56282.0,56281.0,0.897332]
[1725553574538,0.05303045,56288.0,56284.0,0.177678]
[1725553574732,0.05303045,56289.0,56284.0,2.038478]
[1725553574929,0.05303045,56291.0,56284.0,2.038478]
[1725553575139,0.0067994,56294.0,56284.0,2.038478]
[1725553575140,0.05303045,56289.0,56284.0,2.038478]
[1725553575739,0.05303045,56288.0,56284.0,2.042478]
[1725553575929,0.05303045,56287.0,56284.0,1.953639]
[1725553576133,0.05303045,56286.0,56284.0,1.953639]
[1725553576640,0.05329687,56285.0,56284.0,1.953639]
[1725553576835,0.05329687,56285.0,56284.0,1.96056723]
[1725553578241,0.00326642,56285.0,56284.0,1.95656723]
[1725553578428,0.00326642,56285.0,56284.0,2.04540623]
[1725553580945,0.27326642,56285.0,56284.0,1.588839]
[1725553581140,0.27326642,56285.0,56274.0,0.00026642]
[1725553581141,1.47694476,56285.0,56274.0,0.00026642]
[1725553581342,0.272,56275.0,56274.0,0.08912042]
[1725553581544,0.2808018,56275.0,56274.0,0.08912042]
[1725553581843,0.3325018,56275.0,56274.0,0.08912042]
[1725553582245,0.38556288,56275.0,56274.0,0.08912042]
[1725553582456,0.3325018,56275.0,56274.0,0.09712042]
[1725553583844,0.0625018,56275.0,56274.0,0.09712042]
[1725553584242,0.06929993,56275.0,56274.0,0.08912042]
[1725553584548,0.06929993,56275.0,56274.0,0.09112042]
[1725553584549,0.06049813,56275.0,56274.0,0.09112042]
[1725553585238,0.0537,56275.0,56274.0,0.17997542]
[1725553585538,0.002,56275.0,56274.0,0.17997542]
[1725553586142,0.002,56275.0,56274.0,1.67997542]
[1725553586344,0.002,56275.0,56274.0,1.76883042]
[1725553586740,0.002,56275.0,56274.0,1.67997542]
[1725553586941,0.272,56275.0,56274.0,1.59112042]
[1725553587438,0.272,56275.0,56274.0,1.50226642]
[1725553587637,1.23666811,56275.0,56274.0,1e-08]
[1725553587846,1.83666811,56275.0,56274.0,1e-08]
[1725553588053,1.76592,56275.0,56274.0,1e-08]
[1725553588251,1.854773,56275.0,56274.0,1e-08]
[1725553590147,1.76592,56275.0,56274.0,1e-08]
[1725553590342,0.6328,56275.0,56274.0,0.17771001]
[1725553590547,0.6328,56275.0,56274.0,1.67771001]
[1725553590747,0.05501385,56275.0,56274.0,0.62736501]
[1725553590942,0.002,56275.0,56274.0,0.62736501]
[1725553591346,0.002,56275.0,56274.0,2.12736501]
[1725553592256,0.05301385,56283.0,56281.0,0.088844]
[1725553592450,0.05301385,56283.0,56282.0,0.088842]
[1725553592649,0.05301385,56283.0,56282.0,0.177684]
[1725553592953,0.00707424,56285.0,56284.0,0.088839]
[1725553592954,0.00026642,56285.0,56284.0,0.088839]
[1725553593146,0.00026642,56285.0,56284.0,0.449639]
[1725553593348,0.00026642,56285.0,56284.0,0.538478]
[1725553593543,0.00026642,56285.0,56284.0,0.588178]
[1725553594448,4.2e-07,56285.0,56284.0,0.677017]
[1725553594643,0.27,56325.0,56284.0,0.677017]
[1725553594644,2.7e-07,56290.0,56289.0,0.266493]
[1725553594854,0.10636737,56305.0,56289.0,0.266493]
[1725553594855,0.07069989,56299.0,56298.0,0.088817]
[1725553595045,0.00697428,56301.0,56299.0,0.088814]
[1725553595241,0.35838623,56303.0,56299.0,0.088815]
[1725553595242,0.27,56303.0,56299.0,0.088815]
[1725553595441,0.27,56303.0,56294.0,0.3608]
[1725553595442,0.35838623,56303.0,56300.0,0.088813]
[1725553596054,0.36518503,56303.0,56300.0,0.088813]
[1725553596353,0.36518503,56303.0,56296.0,0.08908642]
[1725553596354,0.08838623,56302.0,56296.0,0.08908642]
[1725553596659,0.272,56297.0,56296.0,0.08908642]
[1725553597243,1.40488,56297.0,56296.0,0.00026642]
[1725553597466,1.49326623,56297.0,56289.0,0.44963]
[1725553597754,0.272,56290.0,56289.0,0.44963]
[1725553597955,0.272,56290.0,56289.0,0.08883]
[1725553598154,0.272,56290.0,56284.0,0.088839]
[1725553598155,1.40496,56290.0,56284.0,0.088839]
[1725553598350,0.27,56282.0,56281.0,0.3608]
[1725553598545,0.272,56282.0,56276.0,0.00026642]
[1725553598752,0.052,56281.0,56277.0,0.08885]
[1725553598952,0.052,56281.0,56276.0,0.00026642]
[1725553598953,0.14054548,56281.0,56278.0,0.088848]
[1725553599251,0.14054548,56281.0,56279.0,0.088847]
[1725553599252,0.052,56281.0,56279.0,0.088847]
[1725553599456,4.8e-07,56281.0,56280.0,0.088845]
[1725553599762,0.002,56282.0,56281.0,0.177688]
[1725553599957,0.00026642,56287.0,56286.0,0.088836]
[1725553600252,0.00026642,56287.0,56286.0,2.308472]
[1725553600455,0.00026642,56287.0,56286.0,1.949636]
[1725553601761,0.00126642,56287.0,56286.0,1.958636]
[1725553601963,0.00126642,56287.0,56286.0,2.047472]
[1725553602263,0.00126642,56287.0,56286.0,0.547472]
[1725553602761,4.2e-07,56287.0,56286.0,2.136308]
[1725553603060,6.3e-07,56294.0,56293.0,0.266475]
[1725553603253,0.00676429,56303.0,56297.0,0.088819]
[1725553603453,0.00676429,56303.0,56296.0,0.27]
[1725553603454,0.0492,56306.0,56300.0,0.3608]
[1725553603649,0.37728737,56312.0,56306.0,0.088804]
[1725553603853,0.37728737,56312.0,56300.0,0.3608]
[1725553603854,0.27026642,56312.0,56311.0,0.088797]
[1725553604148,0.29906646,56312.0,56311.0,0.088797]
[1725553604349,1.4405822,56312.0,56311.0,0.088797]
[1725553605155,1.4455822,56312.0,56311.0,0.088797]
[1725553605553,0.82382104,56312.0,56311.0,0.088797]
[1725553605758,0.55382104,56312.0,56311.0,0.088797]
[1725553606669,0.01606104,56312.0,56311.0,0.088797]
[1725553606855,0.02706104,56312.0,56311.0,0.089797]
[1725553607466,0.01606104,56312.0,56311.0,0.088797]
[1725553607759,0.02302216,56312.0,56311.0,0.448594]
[1725553607960,0.02302216,56312.0,56311.0,0.359797]
[1725553608168,0.02302216,56312.0,56311.0,1.859797]
[1725553608655,0.01426642,56312.0,56311.0,1.859797]
[1725553609056,0.02314127,56312.0,56311.0,1.859797]
[1725553609663,0.02314127,56312.0,56311.0,0.001]
[1725553610163,0.02314127,56312.0,56311.0,0.089797]
[1725553611060,0.02314127,56312.0,56310.0,0.088798]
[1725553611061,1.14590127,56312.0,56310.0,0.088798]
[1725553611276,0.002,56311.0,56310.0,0.088798]
[1725553611566,0.088798,56310.0,56306.0,0.088803]
[1725553611753,0.272,56307.0,56293.0,0.0041]
[1725553611957,0.360811,56302.0,56292.0,0.088826]
[1725553612168,0.358811,56302.0,56292.0,0.088826]
[1725553612358,1.491651,56302.0,56292.0,0.088826]
[1725553612558,1.491651,56302.0,56290.0,0.0041]
[1725553612559,1.491651,56302.0,56293.0,0.088825]
[1725553612758,1.491651,56302.0,56290.0,0.0041]
[1725553613268,1.491651,56302.0,56301.0,0.00022642]
[1725553613865,1.491651,56302.0,56301.0,0.00122642]
[1725553613866,1.505651,56302.0,56301.0,0.00122642]
[1725553614264,0.088816,56299.0,56290.0,0.0041]
[1725553614567,0.088816,56299.0,56286.0,0.36760624]
[1725553614568,0.002,56291.0,56286.0,0.36760624]
[1725553614764,0.002,56287.0,56286.0,0.45644224]
[1725553615164,0.002,56287.0,56286.0,0.72644224]
[1725553617666,0.002,56291.0,56286.0,0.72644224]
[1725553617865,0.00026642,56292.0,56291.0,0.266484]
[1725553618065,0.002,56307.0,56304.0,0.27]
[1725553618268,0.002,56307.0,56306.0,0.088804]
[1725553619170,0.36967485,56312.0,56311.0,0.088797]
[1725553619171,0.36994127,56312.0,56311.0,0.088797]
[1725553619375,0.37675167,56312.0,56311.0,0.088797]
[1725553619867,0.37675167,56312.0,56305.0,0.3608]
[1725553620080,0.002,56306.0,56305.0,0.3608]
[1725553620263,0.002,56306.0,56305.0,0.088806]
[1725553621166,0.002,56306.0,56303.0,0.088808]
[1725553621367,0.002,56306.0,56301.0,0.00026642]
[1725553621368,0.002,56306.0,56304.0,0.088807]
[1725553621666,0.002,56304.0,56301.0,0.00026642]
[1725553621869,0.002,56304.0,56301.0,0.08907842]
[1725553621870,0.002,56302.0,56301.0,0.08907842]